fUSD/lending_fUSD_20251028
["ID","MTS","AMOUNT","RATE_DAILY","PERIOD"]
[392561844,1761667569226,-151.0,0.00046575,30]
[392561845,1761667569264,-250.0,0.00046575,30]
[392561846,1761667569303,-250.0,0.00046575,30]
[392561847,1761667569343,-151.0,0.00046575,30]
[392561848,1761667569380,-500.0,0.00046575,30]
[392561849,1761667569417,-250.0,0.00046575,30]
[392561850,1761667569453,-250.0,0.00046575,30]
[392561851,1761667569487,-151.0,0.00046575,30]
[392561852,1761667569527,-500.0,0.00046575,30]
[392561853,1761667569563,-250.0,0.00046575,30]
[392561854,1761667569603,-151.0,0.00046575,30]
[392561855,1761667569641,-500.0,0.00046575,30]
[392561856,1761667569679,-250.0,0.00046575,30]
[392561857,1761667569715,-250.0,0.00046575,30]
[392561858,1761667569752,-151.0,0.00046575,30]
[392561859,1761667569788,-500.0,0.00046575,30]
[392561860,1761667569825,-250.0,0.00046575,30]
[392561861,1761667569861,-250.0,0.00046575,30]
[392561862,1761667569899,-151.0,0.00046575,30]
[392561863,1761667569937,-500.0,0.00046575,30]
[392561864,1761667569974,-250.0,0.00046575,30]
[392561865,1761667570011,-151.0,0.00046575,30]
[392561866,1761667570049,-250.0,0.00046575,30]
[392561867,1761667570086,-500.0,0.00046575,30]
[392561868,1761667570122,-250.0,0.00046575,30]
[392561869,1761667570159,-151.0,0.00046575,30]
[392561870,1761667570197,-250.0,0.00046575,30]
[392561871,1761667570234,-250.0,0.00046575,30]
[392561872,1761667570272,-151.0,0.00046575,30]
[392561873,1761667570310,-250.0,0.00046575,30]
[392561874,1761667570349,-250.0,0.00046575,30]
[392561875,1761667570388,-151.0,0.00046575,30]
[392561876,1761667570426,-250.0,0.00046575,30]
[392561877,1761667570462,-250.0,0.00046575,30]
[392561878,1761667570500,-151.0,0.00046575,30]
[392561879,1761667570537,-250.0,0.00046575,30]
[392561880,1761667570574,-250.0,0.00046575,30]
[392561881,1761667570611,-250.0,0.00046575,30]
[392561882,1761667570648,-250.0,0.00046575,30]
[392561883,1761667570684,-250.0,0.00046575,30]
[392561884,1761667570720,-250.0,0.00046575,30]
[392561885,1761667570756,-250.0,0.00046575,30]
[392561886,1761667570949,-250.0,0.00046575,30]
[392561887,1761667570987,-250.0,0.00046575,30]
[392561888,1761667571026,-500.0,0.00046575,30]
[392561889,1761667571063,-500.0,0.00046575,30]
[392561890,1761667571103,-500.0,0.00046575,30]
[392561891,1761667571140,-500.0,0.00046575,30]
[392561892,1761667571176,-500.0,0.00046575,30]
[392561893,1761667571220,-500.0,0.00046575,30]
[392561894,1761667571256,-200.0,0.00046575,30]
[392561895,1761667571293,-500.0,0.00046575,30]
[392561896,1761667571332,-207.4,0.00046575,30]
[392561897,1761667571375,-500.0,0.00046575,30]
[392561898,1761667571412,-215.0738,0.00046575,30]
[392561899,1761667571448,-500.0,0.00046575,30]
[392561900,1761667571483,-223.0315306,0.00046575,30]
[392561901,1761667571521,-231.28369723,0.00046575,30]
[392561902,1761667571558,-239.84119403,0.00046575,30]
[392561903,1761667571598,-248.71531821,0.00046575,30]
[392561904,1761667571634,-257.91778498,0.00046575,30]
[392561905,1761667571676,-267.46074303,0.00046575,30]
[392561906,1761667571713,-277.35679052,0.00046575,30]
[392561907,1761667571750,-287.61899177,0.00046575,30]
[392561908,1761667571788,-298.26089446,0.00046575,30]
[392561909,1761667571826,-309.29654756,0.00046575,30]
[392561910,1761667571866,-320.74051982,0.00046575,30]
[392561911,1761667571903,-332.60791905,0.00046575,30]
[392561912,1761667571940,-410.86081688,0.00046575,30]
[392561913,1761667571977,-500.0,0.0004659,60]
[392561914,1761667572014,-1243.96837339,0.000466,120]
[392561915,1761667572051,-200.0,0.00046647,120]
[392561916,1761667572088,-1292.85695335,0.000468,120]
[392561917,1761667572126,-1020.64788171,0.000469,120]
[392561918,1761667572166,-500000.0,0.00047,120]
[392561919,1761667572205,-609.10627511,0.00047,30]
[392561920,1761667572241,-161.61352021,0.00047,120]
[392561921,1761667572280,-2419.21849526,0.00047,120]
[392561922,1761667572323,-3813.0,0.00047,120]
[392561923,1761667572361,-191.0,0.00047,120]
[392561924,1761667572399,-151.13924564,0.00047,120]
[392561925,1761667572439,-1000000.0,0.00047,120]
[392561926,1761667572480,-1000000.0,0.00047,120]
[392561927,1761667572521,-401799.13520208,0.00047,120]
[392561928,1761667580898,-46775.04,0.00042,30]
[392561929,1761667580938,-1172.9,0.00043323,120]
[392561930,1761667580978,-155.80013965,0.00044135,43]
[392561931,1761667581016,-600.0,0.00044356,60]
[392561932,1761667581054,-600.0,0.00044904,60]
[392561933,1761667581093,-600.0,0.00045452,60]
[392561934,1761667581138,-600.0,0.00046,60]
[392561935,1761667581177,-500.0,0.00046,120]
[392561936,1761667581227,-500.0,0.00046274,120]
[392561937,1761667581270,-500.0,0.00046548,120]
[392561938,1761667581309,-600.0,0.00046548,60]
[392561939,1761667581351,-500.0,0.00046822,120]
[392561940,1761667581391,-598200.86479792,0.00047,120]
[392561941,1761667581432,-1000000.0,0.00047,120]
[392561942,1761667581472,-150.0,0.00047,120]
[392561943,1761667581512,-500.0,0.00047096,120]
[392561944,1761667581552,-600.0,0.00047096,60]
[392561945,1761667581593,-153.0,0.000473,120]
[392561946,1761667581637,-500.0,0.0004737,120]
[392561947,1761667581676,-642.4007722,0.000475,120]
[392561948,1761667581716,-500000.0,0.000475,120]
[392561949,1761667581756,-1000000.0,0.000475,120]
[392561950,1761667581795,-846149.99429023,0.000475,120]
[392561951,1761667586023,-153850.00570977,0.000475,120]
[392561952,1761667586067,-500.0,0.00047644,120]
[392561953,1761667586109,-276.35078992,0.00047686,60]
[392561954,1761667586153,-169.67,0.00047918,120]
[392561955,1761667586192,-1000.0,0.00047999,120]
[392561956,1761667586233,-1000.0,0.00048,120]
[392561957,1761667586272,-500000.0,0.00048,120]
[392561958,1761667586309,-2890.56771666,0.00048,120]
[392561959,1761667586346,-2510.5567814,0.00048,120]
[392561960,1761667586383,-362.94846941,0.00048,120]
[392561961,1761667586421,-500.0,0.00048,61]
[392561962,1761667586460,-160.90063823,0.00048,120]
[392561963,1761667586498,-280.0,0.00048,120]
[392561964,1761667586537,-339.36,0.00048,30]
[392561965,1761667586586,-812.61,0.00048,120]
[392561966,1761667586625,-150.0,0.00048,120]
[392561967,1761667586662,-992.27667174,0.00048,120]
[392561968,1761667586878,-151.0,0.000481,120]
[392561969,1761667586917,-600.0,0.00048192,60]
[392561970,1761667586955,-202.25738998,0.000485,120]
[392561971,1761667586991,-444.19364437,0.000488,120]
[392561972,1761667587026,-172.56966938,0.000488,120]
[392561973,1761667587062,-18239.87465702,0.000488,120]
[392561974,1761667587099,-10228.72770904,0.000488,120]
[392561975,1761667587136,-347.92056133,0.000488,120]
[392561976,1761667587172,-690.88463596,0.0004888,120]
[392561977,1761667587206,-181.87208177,0.000489,120]
[392561978,1761667587242,-1226.06136794,0.000489,120]
[392561979,1761667587276,-444.0,0.00048986,120]
[392561980,1761667587311,-1000.0,0.00048999,120]
[392561981,1761667587347,-1000.0,0.00049,120]
[392561982,1761667587382,-176.37329544,0.00049,120]
[392561983,1761667587418,-163.6092921,0.00049,120]
[392561984,1761667587455,-784.68324268,0.00049,30]
[392561985,1761667587492,-3813.0,0.00049,120]
[392561986,1761667587530,-3000.0,0.00049,120]
[392561987,1761667587570,-8319.16840275,0.00049,120]
[392561988,1761667587610,-153.0,0.00049,120]
[392561989,1761667587647,-600.0,0.00049288,60]
[392561990,1761667587682,-300.0,0.00049315,30]
[392561991,1761667587717,-300.0,0.00049315,30]
[392561992,1761667587754,-300.0,0.00049315,30]
[392561993,1761667587789,-300.0,0.00049315,30]
[392561994,1761667587827,-334.0,0.00049315,30]
[392561995,1761667587865,-300.0,0.00049315,30]
[392561996,1761667587903,-300.0,0.00049315,30]
[392561997,1761667587940,-300.0,0.00049315,30]
[392561998,1761667587977,-300.0,0.00049315,30]
[392561999,1761667588015,-300.0,0.00049315,30]
[392562000,1761667588051,-300.0,0.00049315,30]
[392562001,1761667588091,-500.0,0.00049315,120]
[392562002,1761667588128,-500.0,0.00049315,120]
[392562003,1761667588168,-500.0,0.00049315,120]
[392562004,1761667588207,-500.0,0.00049315,120]
[392562005,1761667588246,-500.0,0.00049315,120]
[392562006,1761667588287,-500.0,0.00049315,120]
[392562007,1761667588323,-500.0,0.00049315,120]
[392562008,1761667588362,-500.0,0.00049315,120]
[392562009,1761667588400,-500.0,0.00049315,120]
[392562010,1761667588438,-500.0,0.00049315,120]
[392562011,1761667588477,-500.0,0.00049315,120]
[392562012,1761667588516,-500.0,0.00049315,120]
[392562013,1761667588559,-500.0,0.00049315,120]
[392562014,1761667588602,-500.0,0.00049315,120]
[392562015,1761667588642,-500.0,0.00049315,120]
[392562016,1761667588681,-500.0,0.00049315,120]
[392562017,1761667588720,-500.0,0.00049315,120]
[392562018,1761667588757,-500.0,0.00049315,120]
[392562019,1761667588794,-598.59795752,0.00049315,120]
[392562020,1761667588834,-151.0,0.00049315,120]
[392562021,1761667588872,-151.0,0.00049315,120]
[392562022,1761667588912,-151.0,0.00049315,120]
[392562023,1761667588952,-151.0,0.00049315,120]
[392562024,1761667588990,-151.0,0.00049315,120]
[392562025,1761667589028,-151.0,0.00049315,120]
[392562026,1761667589064,-169.886625,0.00049315,120]
[392562027,1761667589100,-363.65578965,0.000495,120]
[392562028,1761667589136,-241.58207367,0.000495,120]
[392562029,1761667589174,-705.0,0.00049731,120]
[392562030,1761667589210,-1548.56,0.00049843,88]
[392562031,1761667589247,-757.2297856,0.00049876,60]
[392562032,1761667589282,-25000.0,0.000499,120]
[392562033,1761667589318,-1412.0,0.000499,60]
[392562034,1761667589360,-260266.87208469,0.0004999,120]
[392562035,1761667589397,-1000.0,0.00049999,120]
[392562036,1761667589436,-50000.0,0.00049999,50]
[392562037,1761667589478,-50000.0,0.0005,61]
[392562038,1761667589515,-1000.0,0.0005,120]
[392562039,1761667589554,-483.0,0.0005,120]
[392562040,1761667589592,-208.47,0.0005,120]
[392562041,1761667589632,-307.60447995,0.0005,120]
[392562042,1761667589670,-2194.39516652,0.0005,120]
[392562043,1761667589706,-500.0,0.0005,120]
[392562044,1761667589743,-282.20775894,0.0005,120]
[392562045,1761667589779,-919.09099983,0.0005,120]
[392562046,1761667589815,-1345.91534849,0.0005,120]
[392562047,1761667589853,-1191.74581245,0.0005,120]
[392562048,1761667589890,-1079.72128265,0.0005,120]
[392562049,1761667589926,-224.93958955,0.0005,120]
[392562050,1761667589963,-165.00461466,0.0005,120]
[392562051,1761667590000,-500.0,0.0005,30]
[392562052,1761667590036,-2133.27737795,0.0005,120]
[392562053,1761667590074,-1000.0,0.0005,60]
[392562054,1761667590114,-200.0,0.0005,120]
[392562055,1761667590152,-15946.99,0.0005,120]
[392562056,1761667590191,-10822.4359796,0.0005,120]
[392562057,1761667590233,-3189.32,0.0005,120]
[392562058,1761667590270,-300.0,0.0005,120]
[392562059,1761667590307,-200.0,0.0005,120]
[392562060,1761667590345,-194.93751695,0.0005,120]
[392562061,1761667590382,-150.0,0.0005,120]
[392562062,1761667590421,-150.0,0.0005,120]
[392562063,1761667590460,-445.99963005,0.0005,120]
[392562064,1761667590499,-150.0,0.0005,120]
[392562065,1761667590537,-150.0,0.0005,30]
[392562066,1761667590577,-161.49878478,0.0005,120]
[392562067,1761667590616,-30000.0,0.0005,120]
[392562068,1761667590658,-40655.17,0.0005,120]
[392562069,1761667590847,-476.00491227,0.0005,120]
[392562070,1761667590886,-2508.42,0.0005,120]
[392562071,1761667590924,-150.0,0.0005,120]
[392562072,1761667590963,-151.0,0.000502,120]
[392562073,1761667591001,-738.58,0.000502,90]
[392562074,1761667591039,-600.0,0.00050384,60]
[392562075,1761667591077,-682.0119606,0.00050502,120]
[392562076,1761667591118,-878.29051803,0.0005054,120]
[392562077,1761667591157,-3992.22801084,0.00050542,120]
[392562078,1761667591196,-878.29051803,0.00050586,120]
[392562079,1761667591235,-18216.25931788,0.00050589,120]
[392562080,1761667591274,-878.29051803,0.0005059,120]
[392562081,1761667591312,-153.0,0.000506,120]
[392562082,1761667591350,-1829.97375048,0.0005063,120]
[392562083,1761667591388,-18216.25931788,0.0005071,120]
[392562084,1761667591427,-682.0119606,0.00050713,120]
[392562085,1761667591466,-18216.25931788,0.00050715,120]
[392562086,1761667591505,-682.0119606,0.0005073,120]
[392562087,1761667591544,-3992.22801084,0.00050754,120]
[392562088,1761667591583,-59427.72803774,0.00050762,120]
[392562089,1761667591620,-1829.97375048,0.0005077,120]
[392562090,1761667591658,-59427.72803774,0.00050787,120]
[392562091,1761667591696,-3992.22801084,0.00050791,120]
[392562092,1761667591736,-59427.72803774,0.00050864,120]
[392562093,1761667591774,-1829.97375048,0.00050867,120]
[392562094,1761667591813,-321.6,0.00051,120]
[392562095,1761667591850,-1000.0,0.00051,120]
[392562096,1761667591887,-252.36254435,0.00051,120]
[392562097,1761667591924,-5062.587,0.00051,120]
[392562098,1761667591961,-3813.0,0.00051,120]
[392562099,1761667592001,-150.0,0.00051,30]
[392562100,1761667592040,-13516.81694319,0.00051,45]
[392562101,1761667592080,-150.0,0.00051,120]
[392562102,1761667592120,-1984.55334348,0.00051,120]
[392562103,1761667592160,-151.0,0.00051233,30]
[392562104,1761667592200,-151.0,0.00051233,30]
[392562105,1761667592240,-151.0,0.00051233,30]
[392562106,1761667592281,-151.0,0.00051233,30]
[392562107,1761667592321,-151.0,0.00051233,30]
[392562108,1761667592362,-250.0,0.00051233,30]
[392562109,1761667592404,-151.0,0.00051233,30]
[392562110,1761667592444,-250.0,0.00051233,30]
[392562111,1761667592485,-151.0,0.00051233,30]
[392562112,1761667592530,-151.0,0.00051233,30]
[392562113,1761667592572,-250.0,0.00051233,30]
[392562114,1761667592617,-151.0,0.00051233,30]
[392562115,1761667592657,-250.0,0.00051233,30]
[392562116,1761667592695,-250.0,0.00051233,30]
[392562117,1761667592734,-151.0,0.00051233,30]
[392562118,1761667592774,-151.0,0.00051233,30]
[392562119,1761667592816,-250.0,0.00051233,30]
[392562120,1761667592860,-151.0,0.00051233,30]
[392562121,1761667592899,-414.0,0.00051233,30]
[392562122,1761667592939,-250.0,0.00051233,30]
[392562123,1761667592979,-151.0,0.00051233,30]
[392562124,1761667593016,-429.318,0.00051233,30]
[392562125,1761667593054,-250.0,0.00051233,30]
[392562126,1761667593093,-151.0,0.00051233,30]
[392562127,1761667593130,-445.202766,0.00051233,30]
[392562128,1761667593169,-250.0,0.00051233,30]
[392562129,1761667593208,-151.0,0.00051233,30]
[392562130,1761667593248,-461.67526834,0.00051233,30]
[392562131,1761667593287,-250.0,0.00051233,30]
[392562132,1761667593327,-151.0,0.00051233,30]
[392562133,1761667593365,-478.75725327,0.00051233,30]
[392562134,1761667593405,-250.0,0.00051233,30]
[392562135,1761667593443,-151.0,0.00051233,30]
[392562136,1761667593480,-496.47127164,0.00051233,30]
[392562137,1761667593517,-250.0,0.00051233,30]
[392562138,1761667593560,-151.0,0.00051233,30]
[392562139,1761667593601,-514.84070869,0.00051233,30]
[392562140,1761667593644,-250.0,0.00051233,30]
[392562141,1761667593683,-151.0,0.00051233,30]
[392562142,1761667593720,-533.88981491,0.00051233,30]
[392562143,1761667593756,-250.0,0.00051233,30]
[392562144,1761667593793,-151.0,0.00051233,30]
[392562145,1761667593830,-553.64373807,0.00051233,30]
[392562146,1761667593867,-250.0,0.00051233,30]
[392562147,1761667593905,-574.12855637,0.00051233,30]
[392562148,1761667593943,-250.0,0.00051233,30]
[392562149,1761667593980,-595.37131296,0.00051233,30]
[392562150,1761667594018,-250.0,0.00051233,30]
[392562151,1761667594055,-250.0,0.00051233,30]
[392562152,1761667594091,-617.40005154,0.00051233,30]
[392562153,1761667594129,-640.24385345,0.00051233,30]
[392562154,1761667594168,-250.0,0.00051233,30]
[392562155,1761667594208,-663.93287602,0.00051233,30]
[392562156,1761667594247,-500.0,0.00051233,30]
[392562157,1761667594286,-250.0,0.00051233,30]
[392562158,1761667594323,-688.49839244,0.00051233,30]
[392562159,1761667594362,-500.0,0.00051233,30]
[392562160,1761667594400,-500.0,0.00051233,30]
[392562161,1761667594438,-713.97283296,0.00051233,30]
[392562162,1761667594808,500.0,0.00051233,30]
[392562163,1761667594852,740.38982778,0.00051233,30]
[392562164,1761667594909,500.0,0.00051233,30]
[392562165,1761667594952,767.7842514,0.00051233,30]
[392562166,1761667595092,500.0,0.00051233,30]
[392562167,1761667595133,796.19226871,0.00051233,30]
[392562168,1761667595200,500.0,0.00051233,30]
[392562169,1761667595249,748.68631256,0.00051233,30]
[392562170,1761667595295,500.0,0.00051233,30]
[392562171,1761667595369,500.0,0.00051233,30]
[392562172,1761667595435,500.0,0.00051233,30]
[392562173,1761667595483,150.0,0.00047598,120]
[392562174,1761667595537,500.0,0.00051233,30]
[392562175,1761667595706,500.0,0.00051233,30]
[392562176,1761667595748,250.0,0.00051233,30]
[392562177,1761667595818,500.0,0.00051233,30]
[392562178,1761667595862,250.0,0.00051233,30]
[392562179,1761667595916,250.0,0.00051233,30]
[392562180,1761667595966,500.0,0.00051233,30]
[392562181,1761667596023,500.0,0.00051233,30]
[392562182,1761667596064,250.0,0.00051233,30]
[392562183,1761667596119,250.0,0.00051233,30]
[392562184,1761667596163,500.0,0.00051233,30]
[392562185,1761667596211,250.0,0.00051233,30]
[392562186,1761667596281,500.0,0.00051233,30]
[392562187,1761667596324,250.0,0.00051233,30]
[392562188,1761667596373,500.0,0.00051233,30]
[392562189,1761667596421,250.0,0.00051233,30]
[392562190,1761667596932,500.0,0.00051233,30]
[392562191,1761667597005,250.0,0.00051233,30]
[392562192,1761667597610,500.0,0.00051233,30]
[392562193,1761667597679,250.0,0.00051233,30]
[392562194,1761667598333,250.0,0.00051233,30]
[392562195,1761667603221,250.0,0.00051233,30]
[392562196,1761667603285,150.0,0.00050526,30]
[392562197,1761667604091,250.0,0.00051233,30]
[392562198,1761667604973,331.09450358,0.00051233,30]
[392562243,1761667617670,-500.0,0.00046,120]
[392562244,1761667617717,-590729.48,0.0005169,120]
[392562245,1761667617756,-1000.0,0.00051999,120]
[392562246,1761667617795,-1000.0,0.00052,120]
[392562247,1761667617833,-3000.0,0.00052,120]
[392562248,1761667617873,-175.0,0.00052,120]
[392562249,1761667617913,-150.0,0.00052,120]
[392562250,1761667617952,-16559.32,0.00052055,120]
[392562251,1761667617992,-151.0,0.000522,120]
[392562252,1761667618031,-153.0,0.000522,120]
[392562253,1761667618069,-2000.0,0.000525,120]
[392562254,1761667618108,-1000.0,0.00053,120]
[392562255,1761667618147,-17714.473032,0.00053,120]
[392562256,1761667618187,-186.21796189,0.00053,120]
[392562257,1761667618226,-250000.0,0.00053,120]
[392562258,1761667618270,-3813.0,0.00053,120]
[392562259,1761667618311,-52420.62212672,0.00053,120]
[392562260,1761667618348,-150.0,0.00053,120]
[392562261,1761667618392,-999.0,0.00053424,120]
[392562262,1761667618431,-80000.0,0.0005375,120]
[392562263,1761667618470,-20000.0,0.000538,120]
[392562264,1761667618510,-270.86,0.000539,120]
[392562265,1761667618551,-153.0,0.000539,120]
[392562266,1761667618590,-444.0,0.00053996,120]
[392562267,1761667618628,-1000.0,0.00053999,120]
[392562268,1761667618666,-1000.0,0.00054,120]
[392562269,1761667618703,-200.0,0.00054,120]
[392562270,1761667618741,-2016.33,0.00054,120]
[392562271,1761667618785,-150.0,0.00054,120]
[392562272,1761667618821,-2480.69167935,0.00054,120]
[392562273,1761667618859,-80000.0,0.0005412,120]
[392562274,1761667619030,500.0,0.00047401,120]
[392562275,1761667619144,500.0,0.00048803,120]
[392562276,1761667619206,508.45293199,0.00050204,120]
[392562277,1761667623248,215.39280017,0.00054165,120]
[392562278,1761667624263,999.0,0.00036986,120]
[392562279,1761667624725,505.43864555,0.00054165,120]
[392562280,1761667624875,999.0,0.00045205,120]
[392562281,1761667625312,999.0,0.00053424,120]
[392562282,1761667626671,150.0,0.00053947,120]
[392562283,1761667631948,1006.0,0.000503,120]
[392562284,1761667632163,150.0,0.00053947,120]
[392562288,1761667711648,3897660.44308158,0.00031507,120]
[392562296,1761667831637,-150.0,0.00026901,2]
[392562297,1761667831649,-150.0,0.00026901,2]
[392562298,1761667831659,-150.0,0.00026901,2]
[392562299,1761667831668,-160.82492808,0.00026901,2]
[392562300,1761667831678,-150.0,0.00026901,2]
[392562301,1761667831687,-239.98550883,0.00027291,2]
[392562302,1761667831696,-1200.0,0.00027291,2]
[392562303,1761667831706,-300.0,0.00027291,2]
[392562304,1761667831715,-150.0,0.00027292,2]
[392562305,1761667831725,-7303.40177765,0.00027292,5]
[392562306,1761667831734,-300.0,0.00027431,2]
[392562307,1761667831744,-300.0,0.00027431,2]
[392562308,1761667831754,-1704.14,0.00028377,2]
[392562309,1761667831764,-150.0,0.00028396,7]
[392562310,1761667831773,-666.0,0.00028396,3]
[392562311,1761667831783,-5000.0,0.00028425,2]
[392562312,1761667831793,-200.0,0.00028458,2]
[392562313,1761667831804,-1000.0,0.00028528,2]
[392562314,1761667831813,-250.0,0.00028641,2]
[392562315,1761667831825,-161.78,0.00028641,2]
[392562316,1761667831835,-286.28,0.00028647,2]
[392562317,1761667831844,-1907.07615369,0.00028656,2]
[392562318,1761667831878,-373.40384631,0.00028656,2]
[392562319,1761667831890,-1250.92,0.00028692,2]
[392562320,1761667831905,-150.0,0.00028703,2]
[392562321,1761667831915,-537.61088538,0.00028718,2]
[392562322,1761667831926,-370.0,0.00028718,2]
[392562324,1761667831937,-313.24911462,0.00028718,2]
[392562326,1761667831947,-1000.0,0.00028739,2]
[392562328,1761667831956,-1650.33087016,0.00028746,2]
[392562332,1761667831979,-570.88747208,0.00028746,2]
[392562394,1761667837526,-175.12,0.00022718,2]
[392562395,1761667837536,-1329.67165776,0.00028746,2]
[392562396,1761667837547,-150.0,0.00029,2]
[392562397,1761667837557,-534.17,0.00029123,2]
[392562398,1761667837566,-150.0,0.00029123,2]
[392562399,1761667837576,-150.0,0.00029123,2]
[392562400,1761667837586,-150.0,0.00029123,2]
[392562401,1761667837596,-150.0,0.00029123,2]
[392562402,1761667837605,-200.0,0.00029482,2]
[392562403,1761667837617,-288.66189471,0.00029482,2]
[392562404,1761667837627,-200.0,0.00029482,2]
[392562405,1761667837638,-288.0,0.00029496,2]
[392562406,1761667837648,-269.85957965,0.00029499,2]
[392562407,1761667837659,-188.90170575,0.00029499,2]
[392562408,1761667837668,-5556.6212311,0.000295,2]
[392562409,1761667837688,-10391.0034292,0.000295,2]
[392562424,1761667838983,-11030.13691331,0.000295,2]
[392562429,1761667839665,-302.0999999,0.000295,2]
[392562430,1761667839733,-16562.47104701,0.000295,2]
[392562431,1761667839933,-1319.84233781,0.000295,2]
[392562442,1761667842556,-1906.3479154,0.000295,2]
[392562443,1761667842766,-4088.5914395,0.000295,2]
[392562444,1761667842778,-1073.88568677,0.000295,2]
[392562445,1761667842788,-200.0,0.000295,10]
[392562446,1761667842798,-2000.0,0.00029548,2]
[392562447,1761667842809,-2000.0,0.0002955,2]
[392562448,1761667842818,-2000.0,0.00029558,2]
[392562449,1761667842828,-2000.0,0.00029559,2]
[392562450,1761667842837,-150.0,0.00029578,2]
[392562451,1761667842847,-150.0,0.00029578,2]
[392562452,1761667842857,-575.979,0.00029578,2]
[392562453,1761667842866,-904.0,0.00029578,2]
[392562454,1761667842876,-715.251,0.00029578,2]
[392562455,1761667842886,-2000.0,0.0002959,2]
[392562456,1761667842896,-300.0,0.00029592,2]
[392562457,1761667842905,-300.0,0.00029592,2]
[392562458,1761667842915,-250.0,0.00029592,2]
[392562459,1761667842924,-268.78009057,0.00029592,2]
[392562461,1761667842933,-300.0,0.00029592,2]
[392562462,1761667842943,-1844.72,0.00029599,2]
[392562463,1761667842953,-500.0,0.000296,10]
[392562464,1761667842962,-2000.0,0.00029601,2]
[392562465,1761667842972,-2000.0,0.00029607,2]
[392562466,1761667842982,-2000.0,0.00029615,2]
[392562467,1761667842991,-803.0,0.00029625,2]
[392562468,1761667843001,-2000.0,0.00029645,2]
[392562469,1761667843010,-168.0,0.00029647,2]
[392562471,1761667843020,-200.0,0.00029661,2]
[392562472,1761667843029,-800.0,0.000297,10]
[392562473,1761667843039,-2500.0,0.000297,2]
[392562474,1761667843048,-163.34771052,0.000297,15]
[392562475,1761667843058,-12591.25931071,0.0002972,2]
[392562476,1761667843067,-5657.382,0.00029741,2]
[392562477,1761667843077,-168.0,0.00029751,2]
[392562478,1761667843086,-500.0,0.00029773,5]
[392562479,1761667843095,-500.0,0.00029773,5]
[392562480,1761667843105,-500.0,0.00029773,5]
[392562481,1761667843115,-167.07689273,0.00029773,5]
[392562482,1761667843124,-500.4575524,0.00029773,5]
[392562483,1761667843135,-161.32685277,0.00029773,5]
[392562484,1761667843144,-214.40692601,0.00029773,5]
[392562486,1761667843154,-500.0,0.00029773,5]
[392562488,1761667843163,-330.2875,0.00029781,2]
[392562489,1761667843174,-1548.56,0.0002979,24]
[392562490,1761667843183,-1056.33303024,0.0002979,2]
[392562491,1761667843192,-427.81,0.0002979,3]
[392562492,1761667843201,-5831.3251273,0.0002979,3]
[392562493,1761667843213,-773.0248478,0.0002979,3]
[392562494,1761667843225,-759.97542573,0.0002979,3]
[392562495,1761667843236,-530.96312799,0.0002979,3]
[392562496,1761667843247,-467.2826888,0.0002979,3]